fUSD/lending_fUSD_20240327
["ID","MTS","AMOUNT","RATE_DAILY","PERIOD"]
[320745972,1711543910831,-826.27,0.00056986,120]
[320745973,1711543910842,-6306.66,0.00056986,120]
[320745974,1711543910853,-1852.95,0.00056986,120]
[320745975,1711543910862,-1088.64,0.00056986,120]
[320745976,1711543910874,-5336.71,0.00056986,120]
[320745977,1711543910885,-2495.6,0.00056986,120]
[320745978,1711543910895,-3525.02,0.00056986,120]
[320745979,1711543910906,-353.60612791,0.00056986,120]
[320745980,1711543910915,-4382.0,0.00056986,120]
[320745981,1711543910925,-3796.34,0.00056986,120]
[320745982,1711543910936,-52702.13,0.00056986,120]
[320745983,1711543910946,-6749.09,0.00056986,120]
[320745984,1711543910956,-5317.23,0.00056986,120]
[320745985,1711543910965,-1020.49,0.00056986,120]
[320745986,1711543910975,-500.0,0.00056986,120]
[320745987,1711543910985,-9670.8,0.00056986,120]
[320745988,1711543910994,-500.0,0.00056986,120]
[320745989,1711543911004,-2509.66,0.00056986,120]
[320745990,1711543911015,-3800.06,0.00056986,120]
[320745991,1711543911025,-500.0,0.00056986,120]
[320745992,1711543911035,-43977.12,0.00056986,120]
[320745993,1711543911045,-500.0,0.00056986,120]
[320745994,1711543911055,-1033.96,0.00056986,120]
[320745995,1711543911064,-2224.07,0.00056986,120]
[320745996,1711543911074,-6046.1,0.00056986,120]
[320745997,1711543911085,-1400.16,0.00056986,120]
[320745998,1711543911095,-3289.32,0.00056986,120]
[320745999,1711543911105,-500.0,0.00056986,120]
[320746000,1711543911115,-500.0,0.00056986,7]
[320746001,1711543911124,-991.15,0.00056986,120]
[320746002,1711543911134,-684.84,0.00056986,120]
[320746003,1711543911143,-670.41,0.00056986,120]
[320746004,1711543911153,-688.53,0.00056986,120]
[320746005,1711543911163,-10352.43,0.00056986,120]
[320746006,1711543911172,-3536.01,0.00056986,120]
[320746007,1711543911182,-8690.1,0.00056986,120]
[320746008,1711543911192,-759.99,0.00056986,120]
[320746009,1711543911203,-5002.55,0.00056986,120]
[320746010,1711543911213,-4330.07,0.00056986,120]
[320746011,1711543911222,-2172.19,0.00056986,120]
[320746012,1711543911232,-2895.84,0.00056986,120]
[320746013,1711543911243,-254.98,0.00056986,120]
[320746014,1711543911253,-500.0,0.00056986,120]
[320746015,1711543911263,-2732.75,0.00056986,120]
[320746016,1711543911273,-1796.45,0.00056986,120]
[320746017,1711543911283,-5480.38,0.00056986,120]
[320746018,1711543911294,-500.0,0.00056986,120]
[320746019,1711543911304,-16950.66,0.00056986,120]
[320746020,1711543911314,-500.0,0.00056986,120]
[320746021,1711543911324,-773.1,0.00056986,120]
[320746022,1711543911333,-532.15,0.00056986,120]
[320746023,1711543911343,-3400.43,0.00056986,120]
[320746024,1711543911352,-5091.09,0.00056986,21]
[320746025,1711543911362,-19292.32,0.00056986,120]
[320746026,1711543911374,-276.26503715,0.00056986,120]
[320746027,1711543911384,-500.0,0.00056986,120]
[320746028,1711543911393,-8474.88,0.00056986,120]
[320746029,1711543911402,-17160.48,0.00056986,120]
[320746030,1711543911412,-500.0,0.00056986,120]
[320746031,1711543911422,-649.49,0.00056986,120]
[320746032,1711543911575,-2690.5,0.00056986,120]
[320746033,1711543911585,-4740.83,0.00056986,120]
[320746034,1711543911595,-938.28,0.00056986,120]
[320746035,1711543911606,-12410.62,0.00056986,120]
[320746036,1711543911617,-4103.23,0.00056986,120]
[320746037,1711543911627,-3583.19,0.00056986,120]
[320746038,1711543911637,-886.33,0.00056986,120]
[320746039,1711543911654,-672.63,0.00056986,120]
[320746040,1711543911717,-4086.57,0.00056986,120]
[320746041,1711543911727,-500.0,0.00056986,120]
[320746042,1711543911738,-8381.34,0.00056986,120]
[320746043,1711543911749,-512.61,0.00056986,120]
[320746044,1711543911760,-34309.32,0.00056986,120]
[320746045,1711543911771,-1388.52,0.00056986,120]
[320746046,1711543911780,-6247.3,0.00056986,120]
[320746047,1711543911789,-1173.99,0.00056986,120]
[320746048,1711543911799,-3278.85,0.00056986,120]
[320746049,1711543911809,-8798.58,0.00056986,120]
[320746050,1711543911819,-464.91940251,0.00056986,120]
[320746051,1711543911828,-500.0,0.00056986,120]
[320746052,1711543911838,-2480.34,0.00056986,120]
[320746053,1711543911849,-500.0,0.00056986,85]
[320746054,1711543911858,-1225.44,0.00056986,120]
[320746055,1711543911871,-500.0,0.00056986,120]
[320746056,1711543911883,-676.46,0.00056986,120]
[320746057,1711543911893,-1233.43,0.00056986,120]
[320746058,1711543911902,-500.0,0.00056986,120]
[320746059,1711543911911,-2528.31,0.00056986,120]
[320746060,1711543911920,-500.0,0.00056986,120]
[320746061,1711543911930,-500.0,0.00056986,120]
[320746062,1711543911939,-500.0,0.00056986,120]
[320746063,1711543911948,-1659.22,0.00056986,120]
[320746064,1711543911957,-1083.78,0.00056986,120]
[320746065,1711543911966,-11741.46,0.00056986,120]
[320746066,1711543911975,-2180.01,0.00056986,120]
[320746067,1711543911985,-1845.88,0.00056986,120]
[320746068,1711543911994,-255.54,0.00056986,120]
[320746069,1711543912003,-584.47,0.00056986,120]
[320746070,1711543912013,-8083.93,0.00056986,120]
[320746071,1711543912022,-3516.57,0.00056986,120]
[320746072,1711543912032,-2618.08,0.00056986,120]
[320746073,1711543912041,-3201.11,0.00056986,120]
[320746074,1711543912050,-500.0,0.00056986,120]
[320746075,1711543912059,-650.65,0.00056986,120]
[320746076,1711543912069,-3063.83,0.00056986,120]
[320746077,1711543912078,-500.0,0.00056986,120]
[320746078,1711543912087,-500.0,0.00056986,120]
[320746079,1711543912096,-1350.19,0.00056986,120]
[320746080,1711543912105,-1927.24,0.00056986,120]
[320746081,1711543912114,-901.69,0.00056986,120]
[320746082,1711543912125,-2225.83,0.00056986,120]
[320746083,1711543912135,-544.48,0.00056986,120]
[320746084,1711543912144,-500.0,0.00056986,120]
[320746085,1711543912153,-1141.16,0.00056986,120]
[320746086,1711543912162,-1139.26,0.00056986,120]
[320746087,1711543912171,-500.0,0.00056986,120]
[320746088,1711543912181,-832.09,0.00056986,120]
[320746089,1711543912190,-2166.83,0.00056986,120]
[320746090,1711543912199,-3156.0,0.00056986,120]
[320746091,1711543912208,-596.08,0.00056986,120]
[320746092,1711543912217,-2931.63,0.00056986,120]
[320746093,1711543912226,-666.49,0.00056986,120]
[320746094,1711543912236,-937.27,0.00056986,120]
[320746095,1711543912245,-500.0,0.00056986,120]
[320746096,1711543912254,-1000.0,0.00057,120]
[320746097,1711543912264,-300.0,0.00057,57]
[320746098,1711543912272,-4795.899798,0.00057108,30]
[320746099,1711543912282,-163.57700478,0.00057139,120]
[320746100,1711543912291,-156.14444312,0.00057152,120]
[320746101,1711543912300,-157.032721,0.00057198,113]
[320746102,1711543912309,-692.13,0.00057205,120]
[320746103,1711543912318,-7563.7944014,0.00057221,2]
[320746104,1711543912327,-151.49,0.00057255,120]
[320746105,1711543912336,-500.0,0.00057259,90]
[320746106,1711543912345,-522.2,0.0005726,120]
[320746107,1711543912354,-500.0,0.0005726,120]
[320746108,1711543912363,-500.0,0.0005726,120]
[320746109,1711543912373,-500.0,0.0005726,120]
[320746110,1711543912382,-500.0,0.0005726,120]
[320746111,1711543912392,-500.0,0.0005726,120]
[320746112,1711543912400,-585.22,0.0005726,120]
[320746113,1711543912410,-500.0,0.0005726,120]
[320746114,1711543912418,-663.06,0.0005726,120]
[320746115,1711543912427,-587.11,0.0005726,120]
[320746116,1711543912437,-440.26175783,0.0005726,120]
[320746117,1711543912446,-500.0,0.0005726,120]
[320746118,1711543912455,-500.0,0.0005726,120]
[320746119,1711543912464,-597.38,0.0005726,120]
[320746120,1711543912474,-616.91,0.0005726,120]
[320746121,1711543912483,-500.0,0.0005726,120]
[320746122,1711543912492,-358.97,0.0005726,120]
[320746123,1711543912501,-695.95,0.0005726,120]
[320746124,1711543912510,-500.0,0.0005726,120]
[320746125,1711543912518,-500.0,0.0005726,120]
[320746126,1711543912527,-500.05,0.0005726,120]
[320746127,1711543912537,-369.55,0.0005726,120]
[320746128,1711543912546,-500.0,0.0005726,120]
[320746129,1711543912555,-500.0,0.0005726,120]
[320746130,1711543912564,-500.0,0.0005726,120]
[320746131,1711543912572,-518.1,0.0005726,120]
[320746132,1711543912581,-500.0,0.0005726,120]
[320746133,1711543912590,-500.0,0.0005726,120]
[320746134,1711543912599,-500.0,0.0005726,120]
[320746135,1711543912608,-500.0,0.0005726,120]
[320746136,1711543912617,-526.24,0.0005726,120]
[320746137,1711543912628,-500.0,0.0005726,120]
[320746138,1711543912637,-500.0,0.0005726,120]
[320746139,1711543912647,-500.0,0.0005726,120]
[320746140,1711543912656,-509.36,0.0005726,120]
[320746141,1711543912668,-669.48,0.0005726,120]
[320746142,1711543912677,-500.0,0.0005726,120]
[320746143,1711543912686,-525.09,0.0005726,120]
[320746144,1711543912706,-471.64,0.0005726,120]
[320746145,1711543912723,-500.0,0.0005726,120]
[320746146,1711543912742,-500.0,0.0005726,120]
[320746147,1711543912764,-500.0,0.0005726,120]
[320746148,1711543912783,-516.74,0.0005726,120]
[320746149,1711543912802,-644.38,0.0005726,120]
[320746150,1711543912820,-500.0,0.0005726,120]
[320746151,1711543912844,-395.78,0.0005726,120]
[320746152,1711543912864,-500.0,0.0005726,120]
[320746153,1711543912886,-1126.03,0.0005726,120]
[320746154,1711543912906,-620.43,0.0005726,120]
[320746155,1711543912926,-1965.76,0.0005726,120]
[320746156,1711543912940,-921.37,0.0005726,120]
[320746157,1711543912957,-2740.9,0.0005726,120]
[320746158,1711543912972,-500.0,0.0005726,120]
[320746159,1711543912988,-5471.51,0.0005726,120]
[320746160,1711543913006,-500.0,0.0005726,120]
[320746161,1711543913022,-171.56,0.0005726,120]
[320746162,1711543913039,-884.38,0.0005726,120]
[320746163,1711543913056,-500.0,0.0005726,120]
[320746164,1711543913074,-1170.95,0.0005726,120]
[320746165,1711543913092,-500.0,0.0005726,120]
[320746166,1711543913109,-1057.95,0.0005726,120]
[320746167,1711543913130,-533.04,0.0005726,120]
[320746168,1711543913149,-2051.46,0.0005726,120]
[320746169,1711543913167,-702.45,0.0005726,120]
[320746170,1711543913186,-545.51,0.0005726,120]
[320746171,1711543913202,-931.2,0.0005726,120]
[320746172,1711543913219,-3285.02,0.0005726,120]
[320746173,1711543913236,-512.74,0.0005726,120]
[320746174,1711543913255,-596.37,0.0005726,120]
[320746175,1711543913272,-500.0,0.0005726,120]
[320746176,1711543913290,-500.0,0.0005726,120]
[320746177,1711543913307,-643.73,0.0005726,120]
[320746178,1711543913324,-503.92,0.0005726,120]
[320746179,1711543913341,-198.86,0.0005726,120]
[320746180,1711543913359,-500.0,0.0005726,120]
[320746181,1711543913378,-500.0,0.0005726,120]
[320746182,1711543913395,-604.98,0.0005726,120]
[320746183,1711543913411,-500.0,0.0005726,120]
[320746184,1711543913427,-668.88,0.0005726,120]
[320746185,1711543913444,-1068.26,0.0005726,120]
[320746186,1711543913459,-792.02,0.0005726,120]
[320746187,1711543913475,-956.84,0.0005726,120]
[320746188,1711543913490,-1164.57,0.0005726,120]
[320746189,1711543913505,-263.21,0.0005726,120]
[320746190,1711543913522,-663.5,0.0005726,120]
[320746191,1711543913538,-500.0,0.0005726,120]
[320746192,1711543913553,-575.0,0.0005726,120]
[320746193,1711543913564,-1108.61,0.0005726,120]
[320746194,1711543913574,-1061.65,0.0005726,120]
[320746195,1711543913585,-865.88,0.0005726,120]
[320746196,1711543913595,-500.0,0.0005726,120]
[320746197,1711543913605,-500.0,0.0005726,120]
[320746198,1711543913616,-500.0,0.0005726,120]
[320746199,1711543913630,-500.0,0.0005726,120]
[320746200,1711543913640,-2925.46,0.0005726,120]
[320746201,1711543913651,-798.22,0.0005726,120]
[320746202,1711543913662,-670.39,0.0005726,120]
[320746203,1711543913674,-1050.1,0.0005726,120]
[320746204,1711543913684,-698.77,0.0005726,120]
[320746205,1711543913694,-831.36,0.0005726,60]
[320746206,1711543913704,-813.47,0.0005726,120]
[320746207,1711543913715,-805.48,0.0005726,120]
[320746208,1711543913724,-895.29,0.0005726,120]
[320746209,1711543913734,-566.16,0.0005726,120]
[320746210,1711543913744,-500.0,0.0005726,120]
[320746211,1711543913756,-1059.6,0.0005726,120]
[320746212,1711543913765,-401.81,0.0005726,120]
[320746213,1711543913775,-624.76,0.0005726,120]
[320746214,1711543913785,-2482.66,0.0005726,120]
[320746215,1711543913795,-1090.65,0.0005726,120]
[320746216,1711543913804,-500.0,0.0005726,120]
[320746217,1711543913814,-596.27,0.0005726,120]
[320746218,1711543913823,-730.57,0.0005726,120]
[320746219,1711543913833,-500.0,0.0005726,120]
[320746220,1711543913843,-1096.84,0.0005726,120]
[320746221,1711543913853,-982.22,0.0005726,120]
[320746222,1711543913863,-532.43,0.0005726,120]
[320746223,1711543913874,-500.0,0.0005726,120]
[320746224,1711543913884,-2012.56,0.0005726,120]
[320746225,1711543913893,-500.0,0.0005726,120]
[320746226,1711543913903,-888.32,0.0005726,120]
[320746227,1711543913913,-2118.58,0.0005726,120]
[320746228,1711543913923,-500.0,0.0005726,120]
[320746229,1711543913933,-500.0,0.0005726,120]
[320746230,1711543913942,-843.94,0.0005726,120]
[320746231,1711543913951,-2323.15,0.0005726,120]
[320746232,1711543913961,-952.22,0.0005726,120]
[320746233,1711543913971,-500.0,0.0005726,120]
[320746234,1711543913980,-1267.74,0.0005726,120]
[320746235,1711543913991,-670.15,0.0005726,120]
[320746236,1711543914000,-646.84,0.0005726,120]
[320746237,1711543914009,-1027.05,0.0005726,120]
[320746238,1711543914018,-500.0,0.0005726,120]
[320746239,1711543914028,-500.0,0.0005726,120]
[320746240,1711543914038,-1044.31,0.0005726,120]
[320746241,1711543914047,-2014.61,0.0005726,120]
[320746242,1711543914057,-500.0,0.0005726,120]
[320746243,1711543914066,-852.33,0.0005726,120]
[320746244,1711543914075,-500.0,0.0005726,120]
[320746245,1711543914085,-632.68,0.0005726,120]
[320746246,1711543914094,-500.0,0.0005726,120]
[320746247,1711543914103,-500.0,0.0005726,120]
[320746248,1711543914113,-509.92,0.0005726,120]
[320746249,1711543914124,-500.0,0.0005726,120]
[320746250,1711543914134,-797.02,0.0005726,30]
[320746251,1711543914642,-693.91,0.0005726,120]
[320746252,1711543914670,-818.9,0.0005726,120]
[320746253,1711543914690,-903.82,0.0005726,120]
[320746254,1711543914709,-225.49932365,0.0005726,120]
[320746255,1711543914723,-500.0,0.0005726,120]
[320746256,1711543914733,-354.80018238,0.0005726,120]
[320746257,1711543914744,-734.77,0.0005726,120]
[320746258,1711543914756,-500.0,0.0005726,120]
[320746259,1711543914766,-645.24,0.0005726,120]
[320746260,1711543914775,-763.33,0.0005726,120]
[320746261,1711543914785,-587.45,0.0005726,120]
[320746262,1711543914794,-785.61,0.0005726,120]
[320746263,1711543914804,-608.04,0.0005726,120]
[320746264,1711543914814,-713.05,0.0005726,120]
[320746265,1711543914823,-524.62,0.0005726,120]
[320746266,1711543914833,-1415.79,0.0005726,120]
[320746267,1711543914843,-788.63,0.0005726,120]
[320746268,1711543914853,-2273.07,0.0005726,120]
[320746269,1711543914862,-500.0,0.0005726,120]
[320746270,1711543914874,-2011.71,0.0005726,120]
[320746271,1711543914883,-677.22,0.0005726,120]
[320746272,1711543914893,-500.0,0.0005726,120]
[320746273,1711543914903,-807.51,0.0005726,120]
[320746274,1711543914912,-500.0,0.0005726,120]
[320746275,1711543914922,-800.48,0.0005726,120]
[320746276,1711543914931,-755.18,0.0005726,120]
[320746277,1711543914941,-842.7,0.0005726,120]
[320746278,1711543914951,-1004.28,0.0005726,120]
[320746279,1711543914961,-2063.63,0.0005726,120]
[320746280,1711543914971,-500.0,0.0005726,120]
[320746281,1711543914980,-500.0,0.0005726,120]
[320746282,1711543914992,-500.0,0.0005726,120]
[320746283,1711543915001,-167.44,0.0005726,120]
[320746284,1711543915010,-305.42,0.0005726,120]
[320746285,1711543915020,-442.3,0.0005726,120]
[320746286,1711543915030,-500.0,0.0005726,120]
[320746287,1711543915039,-676.12,0.0005726,120]
[320746288,1711543915049,-500.0,0.0005726,120]
[320746289,1711543915058,-500.0,0.0005726,120]
[320746290,1711543915068,-500.0,0.0005726,120]
[320746291,1711543915077,-500.0,0.0005726,120]
[320746292,1711543915087,-500.0,0.0005726,120]
[320746293,1711543915097,-559.56,0.0005726,120]
[320746294,1711543915107,-442.02,0.0005726,120]
[320746295,1711543915116,-406.5,0.0005726,120]
[320746296,1711543915128,-500.0,0.0005726,120]
[320746297,1711543915138,-760.12,0.0005726,120]
[320746298,1711543915148,-2308.15,0.0005726,120]
[320746299,1711543915157,-2030.15,0.0005726,120]
[320746300,1711543915167,-500.0,0.0005726,120]
[320746301,1711543915176,-895.23,0.0005726,120]
[320746302,1711543915186,-615.23,0.0005726,120]
[320746303,1711543915195,-537.06,0.0005726,120]
[320746304,1711543915205,-171.17081214,0.0005726,120]
[320746305,1711543915214,-300.872343,0.0005726,120]
[320746306,1711543915224,-500.0,0.0005726,120]
[320746307,1711543915233,-638.18,0.0005726,120]
[320746308,1711543915244,-500.0,0.0005726,120]
[320746309,1711543915253,-988.02,0.0005726,120]
[320746310,1711543915264,-1436.62,0.0005726,120]
[320746311,1711543915273,-500.0,0.0005726,120]
[320746312,1711543915283,-783.0,0.0005726,120]
[320746313,1711543915293,-500.0,0.0005726,120]
[320746314,1711543915302,-1016.45,0.0005726,120]
[320746315,1711543915312,-521.03,0.0005726,120]
[320746316,1711543915322,-612.71,0.0005726,120]
[320746317,1711543915331,-545.88,0.0005726,120]
[320746318,1711543915341,-877.53,0.0005726,120]
[320746319,1711543915350,-10990.32,0.0005726,120]
[320746320,1711543915360,-500.0,0.0005726,120]
[320746321,1711543915369,-500.0,0.0005726,120]
[320746322,1711543915382,-2044.63,0.0005726,120]
[320746323,1711543915392,-4311.07,0.0005726,120]
[320746324,1711543915402,-1347.96,0.0005726,120]
[320746325,1711543915412,-500.0,0.0005726,120]
[320746326,1711543915421,-500.0,0.0005726,120]
[320746327,1711543915432,-976.2,0.0005726,120]
[320746328,1711543915442,-1434.29,0.0005726,120]
[320746329,1711543915451,-839.83,0.0005726,120]
[320746330,1711543915461,-7133.78,0.0005726,120]
[320746331,1711543915470,-545.62,0.0005726,120]
[320746332,1711543915480,-500.0,0.0005726,120]
[320746333,1711543915490,-500.0,0.0005726,120]
[320746334,1711543915500,-586.89,0.0005726,120]
[320746335,1711543915510,-500.0,0.0005726,120]
[320746336,1711543915520,-500.0,0.0005726,120]
[320746337,1711543915530,-531.34,0.0005726,120]
[320746338,1711543915540,-5109.09,0.0005726,120]
[320746339,1711543915549,-7954.08,0.0005726,120]
[320746340,1711543915559,-1365.01,0.0005726,120]
[320746341,1711543915570,-3477.52,0.0005726,120]
[320746342,1711543915580,-1944.43,0.0005726,120]
[320746343,1711543915592,-500.0,0.0005726,120]
[320746344,1711543915602,-500.0,0.0005726,120]
[320746345,1711543915612,-22670.34,0.0005726,120]
[320746346,1711543915624,-726.92,0.0005726,120]
[320746347,1711543915635,-15912.74,0.0005726,120]
[320746348,1711543915645,-500.0,0.0005726,120]
[320746349,1711543915655,-5197.8,0.0005726,120]
[320746350,1711543915667,-462.58223993,0.0005726,120]
[320746351,1711543915679,-3753.0,0.0005726,120]
[320746352,1711543915689,-5025.57,0.0005726,120]
[320746353,1711543915699,-1032.54,0.0005726,120]
[320746354,1711543915710,-2884.81,0.0005726,120]
[320746355,1711543915720,-525.19,0.0005726,120]
[320746356,1711543915730,-500.0,0.0005726,120]
[320746357,1711543915740,-500.0,0.0005726,120]
[320746358,1711543915750,-1554.43,0.0005726,120]
[320746359,1711543915761,-5602.14,0.0005726,120]
[320746360,1711543915771,-2733.23,0.0005726,120]
[320746361,1711543915782,-832.53,0.0005726,120]
[320746362,1711543915792,-343.27803373,0.0005726,120]
[320746363,1711543915802,-1416.51,0.0005726,120]
[320746364,1711543915811,-508.12,0.0005726,120]
[320746365,1711543915821,-2082.72,0.0005726,120]
[320746366,1711543915832,-3295.4,0.0005726,120]
[320746367,1711543915842,-1108.32,0.0005726,120]
[320746368,1711543915852,-500.0,0.0005726,120]
[320746369,1711543915862,-3406.52,0.0005726,120]
[320746370,1711543915874,-79296.15,0.0005726,120]
[320746371,1711543915884,-500.0,0.0005726,120]
[320746372,1711543915895,-500.0,0.0005726,120]
[320746373,1711543915904,-21230.92,0.0005726,120]
[320746374,1711543915915,-786.05,0.0005726,120]
[320746375,1711543915925,-575.24,0.0005726,120]
[320746376,1711543915934,-443.42,0.0005726,120]
[320746377,1711543915945,-3470.89,0.0005726,120]
[320746378,1711543915955,-1436.29,0.0005726,120]
[320746379,1711543915965,-491.12,0.0005726,120]
[320746380,1711543915975,-794.6,0.0005726,120]
[320746381,1711543915985,-4270.02,0.0005726,120]
[320746382,1711543915995,-500.0,0.0005726,120]
[320746383,1711543916004,-13832.31,0.0005726,120]
[320746384,1711543916014,-2558.6,0.0005726,120]
[320746385,1711543916024,-9397.34,0.0005726,120]
[320746386,1711543916034,-1488.59,0.0005726,120]
[320746387,1711543916043,-4828.26,0.0005726,120]
[320746388,1711543916053,-1008.05,0.0005726,120]
[320746389,1711543916063,-3178.59,0.0005726,120]
[320746390,1711543916072,-500.0,0.0005726,120]
[320746391,1711543916082,-544.36,0.0005726,120]
[320746392,1711543916093,-3085.25,0.0005726,120]
[320746393,1711543916103,-751.31,0.0005726,120]
[320746394,1711543916112,-582.28,0.0005726,120]
[320746395,1711543916124,-2368.29,0.0005726,120]
[320746396,1711543916134,-991.50652962,0.0005726,14]
[320746397,1711543916145,-2699.02,0.0005726,120]
[320746398,1711543916156,-5971.8,0.0005726,120]
[320746399,1711543916165,-3173.89,0.0005726,120]
[320746400,1711543916175,-577.45,0.0005726,120]
[320746401,1711543916185,-500.0,0.0005726,120]
[320746402,1711543916196,-2196.71,0.0005726,120]
[320746403,1711543916206,-5725.46,0.0005726,120]
[320746404,1711543916215,-216.67,0.0005726,120]
[320746405,1711543916226,-775.97,0.0005726,120]
[320746406,1711543916235,-4233.1,0.0005726,120]
[320746407,1711543916244,-500.0,0.0005726,120]
[320746408,1711543916254,-3326.63,0.0005726,120]
[320746409,1711543916264,-2626.24,0.0005726,120]
[320746410,1711543916275,-5132.44,0.0005726,120]
[320746411,1711543916285,-14051.88,0.0005726,120]
[320746412,1711543916295,-578.21,0.0005726,120]
[320746413,1711543916305,-1494.67,0.0005726,120]
[320746414,1711543916315,-1284.88,0.0005726,120]
[320746415,1711543916326,-5966.14,0.0005726,120]
[320746416,1711543916336,-3897.67,0.0005726,120]
[320746417,1711543916346,-500.0,0.0005726,120]
[320746418,1711543916356,-638.55,0.0005726,120]
[320746419,1711543916365,-1510.54,0.0005726,120]
[320746420,1711543916377,-740.92,0.0005726,120]
[320746421,1711543916386,-2090.88,0.0005726,120]
[320746422,1711543916396,-826.27,0.0005726,120]
[320746423,1711543916406,-6306.66,0.0005726,120]
[320746424,1711543916417,-1852.95,0.0005726,120]
[320746425,1711543916426,-1088.64,0.0005726,120]
[320746426,1711543916436,-5336.71,0.0005726,120]
[320746427,1711543916446,-2495.6,0.0005726,120]
[320746428,1711543916457,-3525.02,0.0005726,120]
[320746429,1711543916466,-4382.0,0.0005726,120]
[320746430,1711543916476,-3796.34,0.0005726,120]
[320746431,1711543916488,-52702.13,0.0005726,120]
[320746432,1711543916498,-6749.09,0.0005726,120]
[320746433,1711543916508,-5317.23,0.0005726,120]
[320746434,1711543916518,-1020.49,0.0005726,120]
[320746435,1711543916528,-500.0,0.0005726,120]
[320746436,1711543916538,-216.115799,0.0005726,120]
[320746437,1711543916548,-9670.8,0.0005726,120]
[320746438,1711543916558,-622.12568073,0.0005726,120]
[320746439,1711543916569,-2509.66,0.0005726,120]
[320746440,1711543916579,-3800.06,0.0005726,120]
[320746441,1711543916588,-500.0,0.0005726,120]
[320746442,1711543916597,-216.115799,0.0005726,120]
[320746443,1711543916607,-43977.12,0.0005726,120]
[320746444,1711543916617,-500.0,0.0005726,120]
[320746445,1711543916629,-1033.96,0.0005726,120]
[320746446,1711543916639,-6046.1,0.0005726,120]
[320746447,1711543916648,-2224.07,0.0005726,120]
[320746448,1711543916660,-1400.16,0.0005726,120]
[320746449,1711543916670,-3289.32,0.0005726,120]
[320746450,1711543916682,-500.0,0.0005726,120]
[320746451,1711543916692,-500.0,0.0005726,7]
[320746452,1711543916702,-991.15,0.0005726,120]
[320746453,1711543916712,-684.84,0.0005726,120]
[320746454,1711543916721,-670.41,0.0005726,120]
[320746455,1711543916731,-688.53,0.0005726,120]
[320746456,1711543916740,-3536.01,0.0005726,120]
[320746457,1711543916751,-8690.1,0.0005726,120]
[320746458,1711543916761,-10352.43,0.0005726,120]
[320746459,1711543916770,-5002.55,0.0005726,120]
[320746460,1711543916780,-4330.07,0.0005726,120]
[320746461,1711543916791,-759.99,0.0005726,120]
[320746462,1711543916801,-2172.19,0.0005726,120]
[320746463,1711543916811,-2895.84,0.0005726,120]
[320746464,1711543916821,-500.0,0.0005726,120]
[320746465,1711543916830,-2732.75,0.0005726,120]
[320746466,1711543916840,-1796.45,0.0005726,120]
[320746467,1711543916849,-5480.38,0.0005726,120]
[320746468,1711543916858,-306.68,0.0005726,120]
[320746469,1711543916868,-16950.66,0.0005726,120]
[320746470,1711543916880,-500.0,0.0005726,120]
[320746471,1711543916889,-773.1,0.0005726,120]